fUST/lending_fUST_20241221
["ID","MTS","AMOUNT","RATE_DAILY","PERIOD"]
[346151392,1734756551570,-180.29329174,0.00019178,2]
[346151393,1734756551589,-500.0,0.00019178,2]
[346151394,1734756551609,-1060.62,0.00019178,2]
[346151395,1734756551629,-415.70121411,0.00019178,2]
[346151396,1734756551650,-500.0,0.00019178,2]
[346151397,1734756551669,-262.004334,0.00019178,2]
[346151398,1734756551688,-500.0,0.00019178,2]
[346151399,1734756551707,-590.84,0.00019178,2]
[346151400,1734756551727,-500.0,0.00019178,2]
[346151401,1734756551746,-262.004334,0.00019178,2]
[346151402,1734756551766,-262.004334,0.00019178,2]
[346151403,1734756551787,-262.004334,0.00019178,2]
[346151404,1734756551806,-500.0,0.00019178,2]
[346151405,1734756551825,-262.004334,0.00019178,2]
[346151406,1734756551845,-262.004334,0.00019178,2]
[346151407,1734756551866,-262.004334,0.00019178,2]
[346151408,1734756551886,-500.0,0.00019178,2]
[346151409,1734756551906,-500.0,0.00019178,2]
[346151410,1734756551926,-500.0,0.00019178,2]
[346151411,1734756551947,-500.0,0.00019178,2]
[346151412,1734756551969,-500.0,0.00019178,2]
[346151413,1734756551990,-500.0,0.00019178,2]
[346151414,1734756552011,-500.0,0.00019178,2]
[346151415,1734756552032,-500.0,0.00019178,2]
[346151416,1734756552055,-941.85,0.00019178,2]
[346151417,1734756552076,-500.0,0.00019178,2]
[346151418,1734756552098,-500.0,0.00019178,2]
[346151419,1734756552120,-500.0,0.00019178,2]
[346151420,1734756552141,-500.0,0.00019178,2]
[346151421,1734756552162,-500.0,0.00019178,2]
[346151422,1734756552183,-152.853212,0.00019178,2]
[346151423,1734756552203,-1213.93,0.00019178,2]
[346151424,1734756552225,-500.0,0.00019178,2]
[346151425,1734756552245,-500.0,0.00019178,2]
[346151426,1734756552265,-500.0,0.00019178,2]
[346151427,1734756552286,-500.0,0.00019178,2]
[346151428,1734756552306,-500.0,0.00019178,2]
[346151429,1734756552326,-500.0,0.00019178,2]
[346151430,1734756552347,-500.0,0.00019178,2]
[346151431,1734756552367,-500.0,0.00019178,2]
[346151432,1734756552386,-500.0,0.00019178,2]
[346151433,1734756552406,-1213.59,0.00019178,2]
[346151434,1734756552426,-559.94,0.00019178,2]
[346151435,1734756552445,-500.0,0.00019178,2]
[346151436,1734756552470,-500.0,0.00019178,2]
[346151437,1734756552496,-500.0,0.00019178,2]
[346151438,1734756552516,-355.79586828,0.00019178,2]
[346151439,1734756552538,-500.0,0.00019178,2]
[346151440,1734756552558,-500.0,0.00019178,2]
[346151441,1734756552579,-500.0,0.00019178,2]
[346151442,1734756552600,-500.0,0.00019178,2]
[346151443,1734756552622,-500.0,0.00019178,2]
[346151444,1734756552642,-500.0,0.00019178,2]
[346151445,1734756552663,-500.0,0.00019178,2]
[346151446,1734756552684,-500.0,0.00019178,2]
[346151447,1734756552706,-500.0,0.00019178,2]
[346151448,1734756552727,-500.0,0.00019178,2]
[346151449,1734756552748,-500.0,0.00019178,2]
[346151450,1734756552772,-500.0,0.00019178,2]
[346151451,1734756552793,-500.0,0.00019178,2]
[346151452,1734756552815,-701.1,0.00019178,2]
[346151453,1734756552837,-500.0,0.00019178,2]
[346151454,1734756552858,-500.0,0.00019178,2]
[346151455,1734756552880,-502.74037705,0.00019178,2]
[346151456,1734756552901,-500.0,0.00019178,2]
[346151457,1734756552923,-595.55,0.00019178,2]
[346151458,1734756552945,-3392.57,0.00019178,2]
[346151459,1734756552974,-151.0,0.00019178,2]
[346151460,1734756553007,-500.0,0.00019178,2]
[346151461,1734756553031,-151.0,0.00019178,2]
[346151462,1734756553054,-151.0,0.00019178,2]
[346151463,1734756553076,-151.0,0.00019178,2]
[346151464,1734756553099,-151.0,0.00019178,2]
[346151465,1734756553121,-151.0,0.00019178,2]
[346151466,1734756553143,-500.0,0.00019178,2]
[346151467,1734756553165,-151.0,0.00019178,2]
[346151468,1734756553187,-151.0,0.00019178,2]
[346151469,1734756553210,-151.0,0.00019178,2]
[346151470,1734756553233,-151.0,0.00019178,2]
[346151471,1734756553262,-265.81533,0.00019178,2]
[346151472,1734756553295,-500.0,0.00019178,2]
[346151473,1734756553325,-500.0,0.00019178,2]
[346151474,1734756553352,-500.0,0.00019178,2]
[346151475,1734756553375,-500.0,0.00019178,2]
[346151476,1734756553398,-500.0,0.00019178,2]
[346151477,1734756553420,-500.0,0.00019178,2]
[346151478,1734756553442,-1614.82,0.00019178,2]
[346151479,1734756553464,-500.0,0.00019178,2]
[346151480,1734756553488,-500.0,0.00019178,2]
[346151481,1734756553510,-2204.53,0.00019178,2]
[346151482,1734756553534,-500.0,0.00019178,2]
[346151483,1734756553556,-500.0,0.00019178,2]
[346151484,1734756553578,-500.0,0.00019178,2]
[346151485,1734756553600,-500.0,0.00019178,2]
[346151486,1734756553622,-500.0,0.00019178,2]
[346151487,1734756553645,-873.1,0.00019178,2]
[346151488,1734756553668,-505.52,0.00019178,2]
[346151489,1734756553690,-500.0,0.00019178,2]
[346151490,1734756553712,-556.54,0.00019178,2]
[346151491,1734756553734,-151.0,0.00019178,2]
[346151492,1734756553754,-1076.69,0.00019178,2]
[346151493,1734756553776,-153.456406,0.00019178,2]
[346151494,1734756553796,-500.0,0.00019178,2]
[346151495,1734756553816,-500.0,0.00019178,2]
[346151496,1734756553837,-500.0,0.00019178,2]
[346151497,1734756553857,-500.0,0.00019178,2]
[346151498,1734756554102,-607.1,0.00019178,2]
[346151499,1734756554124,-500.0,0.00019178,2]
[346151500,1734756554145,-353.48,0.00019178,2]
[346151501,1734756554166,-788.79,0.00019178,2]
[346151502,1734756554186,-151.0,0.00019178,2]
[346151503,1734756554206,-500.0,0.00019178,2]
[346151504,1734756554227,-152.487263,0.00019178,2]
[346151505,1734756554248,-151.0,0.00019178,2]
[346151506,1734756554270,-151.0,0.00019178,2]
[346151507,1734756554291,-151.0,0.00019178,2]
[346151508,1734756554312,-151.0,0.00019178,2]
[346151509,1734756554333,-151.0,0.00019178,2]
[346151510,1734756554353,-151.0,0.00019178,2]
[346151511,1734756554374,-500.0,0.00019178,2]
[346151512,1734756554396,-251.09377,0.00019178,2]
[346151513,1734756554417,-500.0,0.00019178,2]
[346151514,1734756554437,-500.0,0.00019178,2]
[346151515,1734756554458,-500.0,0.00019178,2]
[346151516,1734756554478,-500.0,0.00019178,2]
[346151517,1734756554499,-515.23,0.00019178,2]
[346151518,1734756554521,-151.0,0.00019178,2]
[346151519,1734756554542,-151.0,0.00019178,2]
[346151520,1734756554563,-4495.38,0.00019178,2]
[346151521,1734756554584,-151.0,0.00019178,2]
[346151522,1734756554605,-4495.38,0.00019178,2]
[346151523,1734756554626,-4495.38,0.00019178,2]
[346151524,1734756554647,-151.0,0.00019178,2]
[346151525,1734756554667,-4495.38,0.00019178,2]
[346151526,1734756554688,-4495.38,0.00019178,2]
[346151527,1734756554709,-4495.38,0.00019178,2]
[346151528,1734756554736,-4495.38,0.00019178,2]
[346151529,1734756554758,-4495.38,0.00019178,2]
[346151530,1734756554780,-500.0,0.00019178,2]
[346151531,1734756554802,-500.0,0.00019178,2]
[346151532,1734756554823,-500.0,0.00019178,2]
[346151533,1734756554846,-151.0,0.00019178,2]
[346151534,1734756554870,-151.0,0.00019178,2]
[346151535,1734756554893,-151.0,0.00019178,2]
[346151536,1734756554913,-500.0,0.00019178,2]
[346151537,1734756554942,-151.0,0.00019178,2]
[346151538,1734756554986,-501.8154218,0.00019178,2]
[346151539,1734756555008,-151.0,0.00019178,2]
[346151540,1734756555030,-151.0,0.00019178,2]
[346151541,1734756555051,-151.0,0.00019178,2]
[346151542,1734756555074,-151.0,0.00019178,2]
[346151543,1734756555096,-267.567354,0.00019178,2]
[346151544,1734756555118,-659.83,0.00019178,2]
[346151545,1734756555139,-500.0,0.00019178,2]
[346151546,1734756555161,-500.83002883,0.00019178,2]
[346151547,1734756555182,-537.62,0.00019178,2]
[346151548,1734756555203,-13611.22777776,0.00019178,2]
[346151549,1734756555745,-8369.58222224,0.00019178,2]
[346151550,1734756555768,-500.0,0.00019178,2]
[346151551,1734756555790,-500.0,0.00019178,2]
[346151552,1734756555810,-500.0,0.00019178,2]
[346151553,1734756555832,-878.24,0.00019178,2]
[346151554,1734756555852,-4338.53,0.00019178,2]
[346151555,1734756555873,-151.0,0.00019178,2]
[346151556,1734756555896,-151.0,0.00019178,2]
[346151557,1734756555918,-275.217451,0.00019178,2]
[346151558,1734756555939,-500.0,0.00019178,2]
[346151559,1734756555960,-159.424001,0.00019178,2]
[346151560,1734756555988,-217.30518613,0.00019178,2]
[346151561,1734756556010,-500.90321993,0.00019178,2]
[346151562,1734756556034,-1249.01,0.00019178,2]
[346151563,1734756556057,-412.45967087,0.00019178,2]
[346151564,1734756556079,-500.0,0.00019178,2]
[346151565,1734756556100,-501.73257682,0.00019178,2]
[346151566,1734756556123,-4942.49,0.00019178,2]
[346151567,1734756556146,-766.22,0.00019178,2]
[346151568,1734756556168,-500.0,0.00019178,2]
[346151569,1734756556189,-502.27684794,0.00019178,2]
[346151570,1734756556210,-500.0,0.00019178,2]
[346151571,1734756556231,-500.0,0.00019178,2]
[346151572,1734756556252,-830.79,0.00019178,2]
[346151573,1734756556274,-500.0,0.00019178,2]
[346151574,1734756556295,-3728.29,0.00019178,2]
[346151575,1734756556316,-500.0,0.00019178,2]
[346151576,1734756556338,-281.156953,0.00019178,2]
[346151577,1734756556360,-281.156953,0.00019178,2]
[346151578,1734756556382,-281.156953,0.00019178,2]
[346151579,1734756556404,-281.156953,0.00019178,2]
[346151580,1734756556425,-281.156953,0.00019178,2]
[346151581,1734756556446,-500.0,0.00019178,2]
[346151582,1734756556467,-281.156953,0.00019178,2]
[346151583,1734756556490,-281.156953,0.00019178,2]
[346151584,1734756556511,-281.156953,0.00019178,2]
[346151585,1734756556534,-501.43698527,0.00019178,2]
[346151586,1734756556555,-281.156953,0.00019178,2]
[346151587,1734756556575,-500.0,0.00019178,2]
[346151588,1734756556596,-281.156953,0.00019178,2]
[346151589,1734756556617,-281.156953,0.00019178,2]
[346151590,1734756556639,-281.156953,0.00019178,2]
[346151591,1734756556660,-2716.77,0.00019178,2]
[346151592,1734756556681,-281.156953,0.00019178,2]
[346151593,1734756556703,-281.156953,0.00019178,2]
[346151594,1734756556725,-3525.99,0.00019178,2]
[346151595,1734756556746,-281.156953,0.00019178,2]
[346151596,1734756556767,-500.0,0.00019178,2]
[346151597,1734756556789,-281.156953,0.00019178,2]
[346151598,1734756556810,-281.156953,0.00019178,2]
[346151599,1734756556832,-281.156953,0.00019178,2]
[346151600,1734756556853,-281.156953,0.00019178,2]
[346151601,1734756556874,-281.156951,0.00019178,2]
[346151602,1734756556894,-500.0,0.00019178,2]
[346151603,1734756556915,-500.0,0.00019178,2]
[346151604,1734756556935,-614.51,0.00019178,2]
[346151605,1734756556956,-500.0,0.00019178,2]
[346151606,1734756556980,-151.0,0.00019178,2]
[346151607,1734756557001,-151.0,0.00019178,2]
[346151608,1734756557025,-589.67,0.00019178,2]
[346151609,1734756557048,-210.41029,0.00019178,2]
[346151610,1734756557069,-502.1628491,0.00019178,2]
[346151611,1734756557089,-151.0,0.00019178,2]
[346151612,1734756557110,-151.0,0.00019178,2]
[346151613,1734756557131,-1471.6,0.00019178,2]
[346151614,1734756557151,-151.0,0.00019178,2]
[346151615,1734756557171,-151.0,0.00019178,2]
[346151616,1734756557191,-151.0,0.00019178,2]
[346151617,1734756557212,-151.0,0.00019178,2]
[346151618,1734756557233,-501.05839953,0.00019178,2]
[346151619,1734756557253,-151.0,0.00019178,2]
[346151620,1734756557276,-151.0,0.00019178,2]
[346151621,1734756557298,-1539.96,0.00019178,2]
[346151622,1734756557320,-151.0,0.00019178,2]
[346151623,1734756557343,-151.0,0.00019178,2]
[346151624,1734756557365,-151.0,0.00019178,2]
[346151625,1734756557387,-500.0,0.00019178,2]
[346151626,1734756557408,-151.0,0.00019178,2]
[346151627,1734756557431,-500.0,0.00019178,2]
[346151628,1734756557453,-151.0,0.00019178,2]
[346151629,1734756557474,-151.0,0.00019178,2]
[346151630,1734756557735,-151.0,0.00019178,2]
[346151631,1734756557759,-227.231768,0.00019178,2]
[346151632,1734756557782,-1139.11,0.00019178,2]
[346151633,1734756557803,-510.76997477,0.00019178,2]
[346151634,1734756557825,-5808.34,0.00019178,2]
[346151635,1734756557846,-797.79,0.00019178,2]
[346151636,1734756557868,-1752.29,0.00019178,2]
[346151637,1734756557888,-500.0,0.00019178,2]
[346151638,1734756557910,-501.66895662,0.00019178,2]
[346151639,1734756557931,-197.695145,0.00019178,2]
[346151640,1734756557952,-197.695145,0.00019178,2]
[346151641,1734756557977,-500.0,0.00019178,2]
[346151642,1734756557997,-197.695145,0.00019178,2]
[346151643,1734756558020,-500.0,0.00019178,2]
[346151644,1734756558043,-197.695145,0.00019178,2]
[346151645,1734756558064,-839.12,0.00019178,2]
[346151646,1734756558089,-500.0,0.00019178,2]
[346151647,1734756558111,-197.695145,0.00019178,2]
[346151648,1734756558133,-500.0,0.00019178,2]
[346151649,1734756558154,-197.695145,0.00019178,2]
[346151650,1734756558175,-1566.02,0.00019178,2]
[346151651,1734756558197,-197.695145,0.00019178,2]
[346151652,1734756558221,-197.695145,0.00019178,2]
[346151653,1734756558245,-197.695145,0.00019178,2]
[346151654,1734756558266,-500.0,0.00019178,2]
[346151655,1734756558289,-197.695145,0.00019178,2]
[346151656,1734756558311,-500.0,0.00019178,2]
[346151657,1734756558334,-197.695145,0.00019178,2]
[346151658,1734756558357,-197.695145,0.00019178,2]
[346151659,1734756558379,-197.695145,0.00019178,2]
[346151660,1734756558401,-197.695145,0.00019178,2]
[346151661,1734756558423,-197.695145,0.00019178,2]
[346151662,1734756558444,-197.695145,0.00019178,2]
[346151663,1734756558465,-197.695145,0.00019178,2]
[346151664,1734756558487,-197.695145,0.00019178,2]
[346151665,1734756558509,-500.0,0.00019178,2]
[346151666,1734756558532,-197.695145,0.00019178,2]
[346151667,1734756558553,-197.695153,0.00019178,2]
[346151668,1734756558575,-500.0,0.00019178,2]
[346151669,1734756558597,-1005.24,0.00019178,2]
[346151670,1734756558620,-739.94,0.00019178,2]
[346151671,1734756558641,-500.0,0.00019178,2]
[346151672,1734756558667,-500.0,0.00019178,2]
[346151673,1734756558689,-686.51,0.00019178,2]
[346151674,1734756558709,-500.0,0.00019178,2]
[346151675,1734756558732,-2329.49,0.00019178,2]
[346151676,1734756558753,-720.69,0.00019178,2]
[346151677,1734756558775,-500.0,0.00019178,2]
[346151678,1734756558796,-500.0,0.00019178,2]
[346151679,1734756558819,-500.0,0.00019178,2]
[346151680,1734756558841,-1277.03,0.00019178,2]
[346151681,1734756558862,-500.0,0.00019178,2]
[346151682,1734756558883,-500.0,0.00019178,2]
[346151683,1734756558904,-500.0,0.00019178,2]
[346151684,1734756558925,-500.0,0.00019178,2]
[346151685,1734756558946,-500.0,0.00019178,2]
[346151686,1734756558971,-6540.37,0.00019178,2]
[346151687,1734756558994,-579.66,0.00019178,2]
[346151688,1734756559017,-500.0,0.00019178,2]
[346151689,1734756559040,-500.0,0.00019178,2]
[346151690,1734756559062,-910.81,0.00019178,2]
[346151691,1734756559085,-500.0,0.00019178,2]
[346151692,1734756559107,-500.0,0.00019178,2]
[346151693,1734756559129,-500.0,0.00019178,2]
[346151694,1734756559153,-4552.69,0.00019178,2]
[346151695,1734756559175,-545.02,0.00019178,2]
[346151696,1734756559196,-500.0,0.00019178,2]
[346151697,1734756559217,-500.0,0.00019178,2]
[346151698,1734756559239,-1204.26,0.00019178,2]
[346151699,1734756559261,-500.0,0.00019178,2]
[346151700,1734756559285,-500.0,0.00019178,2]
[346151701,1734756559313,-500.0,0.00019178,2]
[346151702,1734756559340,-1738.73,0.00019178,2]
[346151703,1734756559364,-1274.67,0.00019178,2]
[346151704,1734756559387,-715.39,0.00019178,2]
[346151705,1734756559409,-500.0,0.00019178,2]
[346151706,1734756559431,-500.0,0.00019178,2]
[346151707,1734756559453,-1389.66,0.00019178,2]
[346151708,1734756559474,-3348.05,0.00019178,2]
[346151709,1734756559498,-3966.13,0.00019178,2]
[346151710,1734756559519,-151.0,0.00019178,2]
[346151711,1734756559542,-151.0,0.00019178,2]
[346151712,1734756559562,-10607.73,0.00019178,2]
[346151713,1734756559582,-500.0,0.00019178,2]
[346151714,1734756559603,-1609.96,0.00019178,2]
[346151715,1734756559624,-725.69,0.00019178,2]
[346151716,1734756559646,-2863.77,0.00019178,2]
[346151717,1734756559666,-500.0,0.00019178,2]
[346151718,1734756559688,-500.0,0.00019178,2]
[346151719,1734756559709,-500.0,0.00019178,2]
[346151720,1734756559734,-500.0,0.00019178,2]
[346151721,1734756559756,-500.0,0.00019178,2]
[346151722,1734756559779,-500.0,0.00019178,2]
[346151723,1734756559802,-723.87,0.00019178,2]
[346151724,1734756559822,-500.0,0.00019178,2]
[346151725,1734756559844,-4399.37,0.00019178,2]
[346151726,1734756559865,-500.0,0.00019178,2]
[346151727,1734756559886,-500.0,0.00019178,2]
[346151728,1734756559906,-500.90106963,0.00019178,2]
[346151729,1734756559926,-500.0,0.00019178,2]
[346151730,1734756559945,-683.27,0.00019178,2]
[346151731,1734756559968,-2982.39,0.00019178,2]
[346151732,1734756559989,-1209.8,0.00019178,2]
[346151733,1734756560011,-1661.02,0.00019178,2]
[346151734,1734756560033,-500.0,0.00019178,2]
[346151735,1734756560054,-500.0,0.00019178,2]
[346151736,1734756560075,-500.0,0.00019178,2]
[346151737,1734756560096,-1557.82,0.00019178,2]
[346151738,1734756560117,-244.05293236,0.00019178,2]
[346151739,1734756560139,-1487.09,0.00019178,2]
[346151740,1734756560160,-500.0,0.00019178,2]
[346151741,1734756560181,-500.0,0.00019178,2]
[346151742,1734756560202,-500.0,0.00019178,2]
[346151743,1734756560223,-500.0,0.00019178,2]
[346151744,1734756560242,-500.0,0.00019178,2]
[346151745,1734756560264,-500.0,0.00019178,2]
[346151746,1734756560286,-762.6,0.00019178,2]
[346151747,1734756560307,-500.0,0.00019178,2]
[346151748,1734756560328,-1249.58,0.00019178,2]
[346151749,1734756560350,-500.0,0.00019178,2]
[346151750,1734756560372,-2865.96,0.00019178,2]
[346151751,1734756560393,-500.0,0.00019178,2]
[346151752,1734756560414,-500.0,0.00019178,2]
[346151753,1734756560438,-2397.6,0.00019178,2]
[346151754,1734756560460,-500.0,0.00019178,2]
[346151755,1734756560482,-500.0,0.00019178,2]
[346151756,1734756560504,-998.68,0.00019178,2]
[346151757,1734756560525,-500.0,0.00019178,2]
[346151758,1734756560546,-500.0,0.00019178,2]
[346151759,1734756560567,-500.0,0.00019178,2]
[346151760,1734756560587,-1861.57,0.00019178,2]
[346151761,1734756560608,-503.71,0.00019178,2]
[346151762,1734756560630,-500.0,0.00019178,2]
[346151763,1734756560652,-1139.43,0.00019178,2]
[346151764,1734756560673,-151.0,0.00019178,2]
[346151765,1734756560694,-151.0,0.00019178,2]
[346151766,1734756560715,-151.0,0.00019178,2]
[346151767,1734756560735,-151.0,0.00019178,2]
[346151768,1734756560756,-501.92030337,0.00019178,2]
[346151769,1734756560777,-151.0,0.00019178,2]
[346151770,1734756560798,-500.0,0.00019178,2]
[346151771,1734756560819,-151.0,0.00019178,2]
[346151772,1734756560838,-151.0,0.00019178,2]
[346151773,1734756560859,-151.0,0.00019178,2]
[346151774,1734756560879,-151.0,0.00019178,2]
[346151775,1734756560902,-299.076929,0.00019178,2]
[346151776,1734756560923,-151.0,0.00019178,2]
[346151777,1734756560944,-500.0,0.00019178,2]
[346151778,1734756560967,-151.0,0.00019178,2]
[346151779,1734756560988,-500.0,0.00019178,2]
[346151780,1734756561011,-151.0,0.00019178,2]
[346151781,1734756561036,-151.0,0.00019178,2]
[346151782,1734756561233,-151.0,0.00019178,2]
[346151783,1734756561259,-281.786255,0.00019178,2]
[346151784,1734756561281,-380.49621791,0.00019178,2]
[346151785,1734756561303,-2351.85,0.00019178,2]
[346151786,1734756561323,-506.43871997,0.00019178,2]
[346151787,1734756561345,-500.0,0.00019178,2]
[346151788,1734756561366,-716.23,0.00019178,2]
[346151789,1734756561387,-500.0,0.00019178,2]
[346151790,1734756561407,-500.0,0.00019178,2]
[346151791,1734756561427,-500.0,0.00019178,2]
[346151792,1734756561448,-22189.98,0.00019178,2]
[346151793,1734756561469,-796.34,0.00019178,2]
[346151794,1734756561489,-500.0,0.00019178,2]
[346151795,1734756561511,-500.0,0.00019178,2]
[346151796,1734756561531,-500.0,0.00019178,2]
[346151797,1734756561552,-500.0,0.00019178,2]
[346151798,1734756561573,-500.0,0.00019178,2]
[346151799,1734756561593,-500.0,0.00019178,2]
[346151800,1734756561613,-500.0,0.00019178,2]
[346151801,1734756561633,-500.0,0.00019178,2]
[346151802,1734756561653,-546.25008887,0.00019178,2]
[346151803,1734756561673,-151.0,0.00019178,2]
[346151804,1734756561695,-151.0,0.00019178,2]
[346151805,1734756561716,-151.0,0.00019178,2]
[346151806,1734756561736,-151.0,0.00019178,2]
[346151807,1734756561757,-151.0,0.00019178,2]
[346151808,1734756561780,-3700.39,0.00019178,2]
[346151809,1734756561801,-151.0,0.00019178,2]
[346151810,1734756561823,-1988.92,0.00019178,2]
[346151811,1734756561843,-151.0,0.00019178,2]
[346151812,1734756561864,-151.0,0.00019178,2]
[346151813,1734756561885,-500.0,0.00019178,2]
[346151814,1734756561907,-500.0,0.00019178,2]
[346151815,1734756561928,-151.0,0.00019178,2]
[346151816,1734756561950,-500.0,0.00019178,2]
[346151817,1734756561974,-171.83115,0.00019178,2]
[346151818,1734756561994,-732.7,0.00019178,2]
[346151819,1734756562017,-500.0,0.00019178,2]
[346151820,1734756562038,-500.0,0.00019178,2]
[346151821,1734756562062,-500.0,0.00019178,2]
[346151822,1734756562085,-6669.93,0.00019178,2]
[346151823,1734756562105,-500.0,0.00019178,2]
[346151824,1734756562128,-579.57,0.00019178,2]
[346151825,1734756562149,-2345.06,0.00019178,2]
[346151826,1734756562170,-500.0,0.00019178,2]
[346151827,1734756562190,-501.26592717,0.00019178,2]
[346151828,1734756562211,-500.0,0.00019178,2]
[346151829,1734756562231,-500.0,0.00019178,2]
[346151830,1734756562251,-254.39648922,0.00019178,2]
[346151831,1734756562272,-10356.99,0.00019178,2]
[346151832,1734756562295,-1356.59,0.00019178,2]
[346151833,1734756562316,-1022.66,0.00019178,2]
[346151834,1734756562337,-500.0,0.00019178,2]
[346151835,1734756562358,-500.0,0.00019178,2]
[346151836,1734756562380,-2944.71,0.00019178,2]
[346151837,1734756562402,-1600.76,0.00019178,2]
[346151838,1734756562425,-502.65176382,0.00019178,2]
[346151839,1734756562446,-500.0,0.00019178,2]
[346151840,1734756562467,-529.36,0.00019178,2]
[346151841,1734756562487,-500.0,0.00019178,2]
[346151842,1734756562508,-500.0,0.00019178,2]
[346151843,1734756562531,-1214.18,0.00019178,2]
[346151844,1734756562552,-550.85,0.00019178,2]
[346151845,1734756562573,-500.0,0.00019178,2]
[346151846,1734756562595,-2125.24,0.00019178,2]
[346151847,1734756562617,-867.99,0.00019178,2]
[346151848,1734756562639,-200.0,0.00019178,2]
[346151849,1734756562660,-500.0,0.00019178,2]
[346151850,1734756562680,-1629.84,0.00019178,2]
[346151851,1734756562701,-500.0,0.00019178,2]
[346151852,1734756562722,-505.74173159,0.00019178,2]
[346151853,1734756562743,-151.0,0.00019178,2]
[346151854,1734756562763,-500.0,0.00019178,2]
[346151855,1734756562784,-500.0,0.00019178,2]
[346151856,1734756562803,-153.442738,0.00019178,2]
[346151857,1734756562823,-1175.75,0.00019178,2]
[346151858,1734756562843,-500.0,0.00019178,2]
[346151859,1734756562864,-500.0,0.00019178,2]
[346151860,1734756562885,-500.0,0.00019178,2]
[346151861,1734756562907,-500.0,0.00019178,2]
[346151862,1734756562927,-94097.92,0.00019178,2]
[346151863,1734756562951,-500.0,0.00019178,2]
[346151864,1734756562976,-21179.29413227,0.00019178,2]
[346151865,1734756563646,-478.8133,0.00019178,2]
[346151866,1734756564507,-4975.60256773,0.00019178,2]
[346151867,1734756564528,-500.0,0.00019178,2]
[346151868,1734756564548,-500.0,0.00019178,2]
[346151869,1734756564568,-500.0,0.00019178,2]
[346151870,1734756564588,-2389.75,0.00019178,2]
[346151871,1734756564607,-500.0,0.00019178,2]
[346151872,1734756564627,-160.713346,0.00019178,2]
[346151873,1734756564647,-160.713346,0.00019178,2]
[346151874,1734756564665,-500.0,0.00019178,2]
[346151875,1734756564685,-160.713346,0.00019178,2]
[346151876,1734756564704,-160.713346,0.00019178,2]
[346151877,1734756564723,-160.713346,0.00019178,2]
[346151878,1734756564743,-160.713346,0.00019178,2]
[346151879,1734756564762,-160.713346,0.00019178,2]
[346151880,1734756564781,-160.713346,0.00019178,2]
[346151881,1734756564801,-160.713346,0.00019178,2]
[346151882,1734756564821,-160.713346,0.00019178,2]
[346151883,1734756564840,-306.7432284,0.00019252,2]
[346151884,1734756564860,-500.0,0.00019261,2]
[346151885,1734756564879,-152.0,0.00019286,2]
[346151886,1734756564899,-329.4491589,0.000193,2]
[346151887,1734756564918,-7617.7295612,0.00019393,2]
[346151888,1734756564937,-151.0,0.000194,2]
[346151889,1734756564955,-154.8460118,0.000194,2]
[346151890,1734756564976,-153.7462572,0.000194,2]
[346151891,1734756564995,-153.3256923,0.000194,2]